Cogmind - Beta 13 X1 @@@ ROGUE MODE // 2023.09.22 @ 18:05:13 Player: Decinym Result: Destroyed by EN-4ET(R) with Subdweller Laser Performance ------------- Evolutions (0) 0 Regions Visited (3) 600 Robots Destroyed (30) 150 Value Destroyed (707) 707 Prototype IDs (0) 0 Alien Tech Used (0) 0 Bonus (14) 14 TOTAL SCORE: 1471 Bonus ------- Follower Combat Kills 14 Cogmind --------- Core Integrity 0/250 Matter 290/300 Energy 80/125 System Corruption 0% Temperature Cool (6) Movement Treading (240) Ox1 Location -10/Subcaves Parts ------- > --- POWER (1) -------- Light Ion Engine > --- PROPULSION (2) --- Light Treads > --- UTILITY (2) ------ Improved Heat Sink Large Storage Unit > --- WEAPON (2) ------- Subdweller Laser Subdweller Laser > --- INVENTORY (15) --- High-capacity Storage Unit Cargo Storage Unit Riot Gun Subdweller Laser Subdweller Beam Cannon Subdweller Beam Cannon Subdweller Beam Cannon Light Assault Rifle Subdweller Machine Gun Subdweller Machine Gun Mining Laser Makeshift Spear Shrapnel Trap Peak State ------------ > --- POWER ------------ Makeshift Power Source > --- PROPULSION ------- Light Treads Spiked Treads > --- UTILITY ---------- Improved Heat Sink Large Storage Unit > --- WEAPON ----------- Subdweller Laser Subdweller Laser > --- INVENTORY -------- Light Ion Engine Improved Heat Sink High-capacity Storage Unit Cargo Storage Unit Riot Gun Subdweller Laser Subdweller Beam Cannon Subdweller Beam Cannon Light Assault Rifle Subdweller Machine Gun Subdweller Machine Gun Mining Laser Makeshift Spear Shrapnel Trap [Rating: 17] Favorites ----------- Power Ion Engine Engine Ion Engine Propulsion Light Treads Treads Light Treads Leg Aluminum Leg Wheel Subdweller Monowheel Utility Large Storage Unit Device Improved Heat Sink Storage Large Storage Unit Protection Light Armor Plating Weapon Light Assault Rifle Energy Gun Particle Gun Ballistic Gun Light Assault Rifle Special Weapon Mining Laser Build | -11 -10 -10 -10 ------- Run | Jun Mat Min Sub Slots Evolved . | . . . . Power . | . . . . Propulsion . | . . . . Utility . | . . . . Weapon . | . . . . Parts Attached 30 | . 5 12 13 Power 7 | . 2 1 4 Engine 7 | . 2 1 4 Core . | . . . . Reactor . | . . . . Propulsion 8 | . . 4 4 Treads 3 | . . 2 1 Leg 3 | . . 2 1 Wheel 2 | . . . 2 Hover . | . . . . Flight . | . . . . Utility 4 | . 2 1 1 Device 2 | . . 1 1 Storage 1 | . 1 . . Processor . | . . . . Hackware . | . . . . Protection 1 | . 1 . . Artifact . | . . . . Weapon 11 | . 1 6 4 Energy Gun 5 | . 1 2 2 Energy Cannon . | . . . . Ballistic Gun 5 | . . 3 2 Ballistic Cannon . | . . . . Launcher . | . . . . Special Weapon 1 | . . 1 . Impact Weapon . | . . . . Slashing Weapon . | . . . . Piercing Weapon . | . . . . Special Melee Weapon . | . . . . Unidentified Prototypes . | . . . . Parts Lost 9 | . . 4 5 Power 3 | . . 1 2 Propulsion 3 | . . 1 2 Utility 2 | . . 1 1 Weapon 1 | . . 1 . Highest Loss Streak 3 | . . 3 2 To Critical Strikes . | . . . . Average Slot Usage (%) 98 | . 96 99 97 Engine 13 | . 14 13 13 Treads 15 | . . 24 20 Leg 11 | . 28 3 . Wheel 1 | . . . 4 Device 8 | . . 12 14 Storage 14 | . 14 14 14 Protection 4 | . 10 1 . Energy Gun 16 | . 28 6 16 Ballistic Gun 11 | . . 21 11 Naked Turns . | . . . . Heaviest Build 34 | 10 30 32 34 Greatest Support 40 | 20 20 40 40 Greatest Overweight (x) 3 | . 1 2 3 Average Overweight (x) . | . . . . Largest Inventory Capacity 15 | . 15 15 15 Average Capacity 14 | . 12 15 15 Most Carried 15 | . 14 15 15 Average Carried 11 | . 8 11 13 Final Capacity 15 | 8 15 15 15 Final Carried 14 | 6 14 12 14 Class Distribution -------------------- 53% | Scavenger-Mutant 39% | Mutant 7% | Derelict-Mutant Dominant Class ---------------- Mutant | -10/Materials Scavenger-Mutant | -10/Mines Scavenger-Mutant | -10/Subcaves Resources | -11 -10 -10 -10 ----------- Run | Jun Mat Min Sub Matter Collected 592 | 145 95 222 130 Remotely . | . . . . Salvage Created 1016 | . 269 482 265 Parts 60 | . 17 24 19 Haulers Intercepted 1 | . 1 . . Recyclers Shooed . | . . . . Parts Field Recycled . | . . . . Retrieved Matter . | . . . . Parts Self-Destructed 1 | . . . 1 Prevented . | . . . . Kills | -11 -10 -10 -10 ------- Run | Jun Mat Min Sub Combat Hostiles Destroyed 24 | . 7 12 5 Guns 24 | . 7 12 5 Classes Destroyed 11 | . 5 4 2 Worker 1 | . 1 . . Builder 2 | . . 2 . Tunneler 1 | . . 1 . Hauler 1 | . 1 . . Recycler 1 | . . 1 . Watcher 2 | . 2 . . Swarmer 7 | . 5 2 . Grunt 10 | . 2 8 . Cobbler 1 | . . . 1 Subdweller 5 | . . . 5 Assembled 2 | . . 2 . Best Kill Streak 4 | . 3 4 1 Combat Bots Only 3 | . 3 3 1 Max Kills in Single Turn 2 | . 2 2 1 Gunslinging 1 | . . 1 . Exploded . | . . . . Melee . | . . . . Uniques/NPCs Destroyed . | . . . . Combat | -11 -10 -10 -10 -------- Run | Jun Mat Min Sub Damage Taken 1591 | . 220 762 609 Core 258 | . 20 118 120 Absorbed by Shields . | . . . . Core Remaining (%) 100 | 100 . . . Volleys Fired 113 | . 26 56 31 Largest 2 | . 2 2 2 Hottest 130 | . 105 130 120 Shots Fired 206 | . 52 93 61 Gun 202 | . 52 89 61 Cannon . | . . . . Launcher . | . . . . Special 4 | . . 4 . Kinetic 63 | . . 47 16 Thermal 143 | . 52 46 45 Explosive . | . . . . Electromagnetic . | . . . . Robot Hit Streak 12 | . 10 9 12 Robot Miss Streak 5 | . 3 5 2 Penetration Max . | . . . . Secondary Targets 3 | . . 3 . Max Gunslinging Chain 1 | . . 1 . Shots Hit Robots 114 | . 33 44 37 Core Hits 54 | . 16 26 12 Critical Kills 1 | . . . 1 Critical Parts Destroyed 1 | . . 1 . Critical Strikes 6 | . 1 3 2 Burn 3 | . 1 2 . Destroy 3 | . . 1 2 Melee Attacks . | . . . . Impact . | . . . . Slashing . | . . . . Piercing . | . . . . Sneak Attacks . | . . . . Combat Hostiles . | . . . . Follow-up Attacks . | . . . . Damage Inflicted 1600 | . 437 533 630 Guns 1570 | . 435 505 630 Cannons . | . . . . Explosions . | . . . . Melee . | . . . . Ramming 30 | . 2 28 . Kinetic 325 | . . 204 121 Thermal 1245 | . 435 301 509 Explosive . | . . . . Electromagnetic . | . . . . Impact . | . . . . Slashing . | . . . . Piercing . | . . . . Highest Corruption . | . . . . Average Corruption . | . . . . Corruption Purged . | . . . . Corruption Blocked . | . . . . Overload Shots . | . . . . Overflow Damage . | . . . . Projectiles . | . . . . Explosions . | . . . . Melee . | . . . . Knockbacks . | . . . . Impact . | . . . . Kinetic . | . . . . Secondary . | . . . . Self-Inflicted Damage . | . . . . Shots . | . . . . Rammed 3 | . . 3 . Targets Rammed 6 | . 1 5 . Kicked 1 | . 1 . . Crushed 2 | . . 2 . Highest Temperature 404 | . 324 404 3 Average Temperature 125 | . 79 181 3 Received Heat Transfer 549 | . 60 387 102 Effects 5 | . 1 4 . Shutdowns 1 | . . 1 . Energy Bleed 2 | . 1 1 . Interference 1 | . . 1 . Matter Decay 1 | . . 1 . Siege Activations . | . . . . Robots Corrupted . | . . . . Combat Hostiles . | . . . . Parts Fried . | . . . . Impact Corruptions . | . . . . Robots Melted . | . . . . Combat Hostiles . | . . . . Parts Melted 3 | . 1 2 . Heat Transferred 2559 | . 1068 866 625 Parts Sabotaged . | . . . . Parts Stolen . | . . . . Parts Stripped . | . . . . Power Chain Reactions . | . . . . Missiles Intercepted . | . . . . Alert | -11 -10 -10 -10 ------- Run | Jun Mat Min Sub Peak Influence 230 | . 155 230 . Initial 56 | . . 56 . Average 50 | . 26 71 . Maximum Alert Level 1 | . . 1 . Low Security (%) 94 | . 100 89 . Level 1 5 | . . 10 . Level 2 . | . . . . Level 3 . | . . . . Level 4 . | . . . . Level 5 . | . . . . High Security . | . . . . Max Security . | . . . . Squads Dispatched 1 | . 1 . . Investigation . | . . . . Extermination . | . . . . Reinforcement 1 | . 1 . . Assault . | . . . . Garrison . | . . . . Intercept . | . . . . Searches Triggered . | . . . . Construction Impeded . | . . . . Haulers Reinforced . | . . . . Active Scanning Responses . | . . . . Cargo Convoy Interrupts . | . . . . Stealth | -11 -10 -10 -10 --------- Run | Jun Mat Min Sub Distress Signals 5 | . 5 . . Communications Jammed . | . . . . Distress Signals . | . . . . Times Spotted 44 | . 20 15 9 Peak Tracking Total 4 | . 4 4 3 Tactical Retreats 1 | . 1 . . Traps | -11 -10 -10 -10 ------- Run | Jun Mat Min Sub Traps Triggered 2 | . . . 2 Indirectly . | . . . . Trap Hack Attempts . | . . . . Triggered . | . . . . Disarmed . | . . . . Reprogrammed . | . . . . Reused . | . . . . Traps Extracted . | . . . . Installed . | . . . . Triggered . | . . . . Most Traps Carried 1 | . . . 1 Machines | -11 -10 -10 -10 ---------- Run | Jun Mat Min Sub Machines Disabled . | . . . . Max in Single Turn . | . . . . Machines Repaired . | . . . . Machines Sabotaged . | . . . . Overloaded Fab Kills . | . . . . Hacking | -11 -10 -10 -10 --------- Run | Jun Mat Min Sub Machines Accessed 5 | . 4 . 1 Terminals 4 | . 4 . . Fabricators . | . . . . Repair Stations . | . . . . Recycling Units . | . . . . Scanalyzers . | . . . . Garrison Access . | . . . . Total Hacks 7 | . 6 . 1 Successful 4 | . 3 . 1 Failed 3 | . 3 . . Catastrophic . | . . . . Database Lockouts . | . . . . Manual 4 | . 4 . . Terminals 6 | . 6 . . Fabricators . | . . . . Repair Stations . | . . . . Recycling Units . | . . . . Scanalyzers . | . . . . Garrison Access . | . . . . Terminal Hacks 3 | . 2 . 1 Record 1 | . . . 1 Zone Layout 2 | . 2 . . Fabricator Hacks . | . . . . Repair Station Hacks . | . . . . Recycling Unit Hacks . | . . . . Scanalyzer . | . . . . Garrison Access Hacks . | . . . . Unauthorized Hacks 1 | . 1 . . Terminals 1 | . 1 . . Assimilate 1 | . 1 . . Fabricators . | . . . . Repair Stations . | . . . . Recycling Units . | . . . . Scanalyzers . | . . . . Garrison Access . | . . . . Data Cores Recovered . | . . . . Used . | . . . . Hacking Detections 3 | . 3 . . Full Trace Events . | . . . . Feedback Events . | . . . . Feedback Blocked . | . . . . Robot Schematics Acquired . | . . . . Robots Built . | . . . . Authchips . | . . . . Time . | . . . . Total Robot Build Rating . | . . . . Part Schematics Acquired . | . . . . Parts Built . | . . . . Authchips . | . . . . Time . | . . . . Total Part Build Rating . | . . . . Parts Repaired . | . . . . Time . | . . . . Parts Recycled . | . . . . Recycled Matter . | . . . . Retrieved Matter . | . . . . Retrieved Components . | . . . . Parts Scanalyzed . | . . . . Part Schematics Acquired . | . . . . Parts Damaged . | . . . . Bothacking | -11 -10 -10 -10 ------------ Run | Jun Mat Min Sub Used RIF Installer . | . . . . Robots Hacked . | . . . . Non-combat . | . . . . Combat . | . . . . Robot Hacks Applied . | . . . . Relay Couplers Released . | . . . . Fabnet Peak Effective % . | . . . . Robots Rewired . | . . . . Allies Hacked . | . . . . Hacks Repelled . | . . . . Allies | -11 -10 -10 -10 -------- Run | Jun Mat Min Sub Total Allies 2 | . 1 1 . Largest Group 1 | . 1 1 . Highest-Rated Group 31 | . 10 31 . Highest-Rated Ally 31 | . 10 31 . Total Orders . | . . . . Ally Attacks 9 | . . 9 . Total Damage 86 | . . 86 . Kills 2 | . . 2 . Allies Corrupted . | . . . . Allies Melted . | . . . . Intel | -11 -10 -10 -10 ------- Run | Jun Mat Min Sub Robot Analysis Total . | . . . . Derelict Logs Recovered 2 | . . 1 1 Drone Launches . | . . . . Drone Recoveries . | . . . . Exploration | -11 -10 -10 -10 ------------- Run | Jun Mat Min Sub Turns Passed 3730 | . 1308 1424 998 Spaces Moved 1897 | 1 650 668 578 Core . | . . . . Treads 942 | . . 625 317 Legs 696 | 1 650 43 2 Wheels 259 | . . . 259 Hover . | . . . . Flight . | . . . . Fastest Speed 120 | 120 120 160 120 Average Speed 157 | 120 160 162 149 Slowest Speed 260 | 120 190 260 260 Overloaded Moves . | . . . . Propulsion Burnouts . | . . . . Robots Hopped . | . . . . Cave-ins Triggered . | . . . . Exploration Rate (%) 54 | 2 79 90 46 Regions Visited 3 Branch Regions 2 Pre-discovered Areas . | . . . . Known Exits Taken . | . . . . Unknown Exits Taken 3 | 1 1 1 . Scrap Searched 6 | . . 1 5 Spaces Dug . | . . . . Terrain Destroyed . | . . . . Melee . | . . . . Projectile . | . . . . AOE . | . . . . Terrain Rammed . | . . . . Walls Destroyed . | . . . . Machines Disabled . | . . . . Actions | -11 -10 -10 -10 --------- Run | Jun Mat Min Sub Total 2431 | . 862 915 654 Wait 347 | . 176 161 10 Move 1894 | . 649 667 578 Hop . | . . . . Pick Up 20 | . 4 5 11 Fast Attach 9 | . 1 3 5 Attach 7 | . . 3 4 Detach . | . . . . Swap 14 | . 4 6 4 Drop 21 | . 1 9 11 Fire 113 | . 26 56 31 Melee . | . . . . Ram . | . . . . Kick 1 | . 1 . . Crush 5 | . . 5 . Escape Stasis . | . . . . Rewire . | . . . . Trap . | . . . . Miscellaneous . | . . . . Route ------- -11/Junkyard -10/Materials (discovered 6 exits: [*Mat x3] / [*Min x2] / *Sub) -10/Mines (discovered 3 exits: [*Mat x2] / *Sub) -10/Subcaves (discovered 2 exits: [*Mat x2]) History --------- Turn | Location | Event 1 | -11/Junkyard | Discovered new exit (range 0) 1 | -11/Junkyard | Entered Materials 277 | -10/Materials | Discovered new exit (range 16) 305 | -10/Materials | Build established: Mutant 317 | -10/Materials | Discovered new exit (range 11) 577 | -10/Materials | Discovered new exit (range 4) 808 | -10/Materials | Discovered new exit (range 3) 942 | -10/Materials | Discovered new exit (range 14) 1251 | -10/Materials | Discovered new exit (range 16) 1309 | -10/Materials | Entered Mines 1491 | -10/Mines | Lost 3 parts (1p1n1u) 1531 | -10/Mines | Received a Mining Laser from a helpful Derelict 1628 | -10/Mines | Build established: Scavenger-Mutant 1714 | -10/Mines | Excavation squad dispatched 1714 | -10/Mines | A large section of the Mines collapsed 1807 | -10/Mines | Core integrity fell below 50% 1836 | -10/Mines | Discovered new exit (range 11) 2259 | -10/Mines | Discovered new exit (range 11) 2517 | -10/Mines | Learned Materials terminal intel 2725 | -10/Mines | Discovered new exit (range 4) 2733 | -10/Mines | Entered Subcaves 2908 | -10/Subcaves | Discovered new exit (range 16) 3123 | -10/Subcaves | Shifting Twisted Machinery released Mak. System Restoration Module 3128 | -10/Subcaves | Shifting Twisted Machinery released Shrapnel Trap 3164 | -10/Subcaves | Visited Clippyterm 3279 | -10/Subcaves | Shifting Twisted Machinery released Sub. Machine Gun 3294 | -10/Subcaves | Shifting Twisted Machinery released Sub. Laser 3417 | -10/Subcaves | Shifting Twisted Machinery released Mak. Spear 3477 | -10/Subcaves | Discovered new exit (range 8) 3705 | -10/Subcaves | Visited 4L-MR0's lab 3722 | -10/Subcaves | Core integrity fell below 20% 3731 | -10/Subcaves | Destroyed by EN-4ET(R) with Subdweller Laser Last Messages --------------- 03514_ Acquired Mak. Power Source. 03515_ Acquired 10 matter. 03519_ Dropped Mak. Power Source. 03520_ Acquired 10 matter. 03537_ K5-OTB(R) destroyed. 03582_ BI-SS0(R) destroyed. 03641_ Searching scrap... 03641_ Found Sub. Beam Cannon. 03641_ Found 39 Matter. 03642_ Triggered Piercing Trap. 03642_ Spikes shoot up from the floor. 03642_ Critical hit (Impale). 03642_ Imp. Heat Sink destroyed. 03642_ Critical hit (Impale). 03648_ Acquired Sub. Beam Cannon. 03649_ Acquired 10 matter. 03719_ EN-4ET(R) suffers critical hit (Destroy). 03723_ Spk. Treads destroyed. 03728_ Destroyed Scrap Shield. 03729_ Mak. Power Source destroyed. Map ----- +----------------------------------------------------+ | | | | | | | | | | | | | | | | | | | | | | | | | | | | | | | | | ?????????????????????????????????????????????????? | | ?????????????????????????????????????????????????? | | ?????????????????????????????????????????????????? | | ?????????????????????????????????????????????????? | | ?????????????# "#""??????????????????????????????? | | ?????????????#!" "X"????????????????????????????? | | ???????????????# #####?????????????????????? | | ????????????#### +R <#?????????????????????? | | ????????????# #?#########RR#?????????????????????? | | ????????????# ####???####@<#?????????????????????? | | ????????????#" ""#####" % <#?????????????????????? | | ????????????##" # <#?????????????????????? | | ?????????????# "## ##?????????????????????? | | ?????????????####" ##<< ##??????????????????????? | | ??????????????###< "########?????#####??????????? | | ?????????????## < ### ###### ###????????? | | ????????????# ######?### | | ????????????# ###### #?# | | ??????????# #?????## ## | | ??????????# ??????## ![& ##??# = | | ??????????# ??????# &&%" ##??????# | | ??????????## ?####??# &### ##???????## ! | | ???????????# ## #?# ## ###???######## """ | | ???????????# ## ####"#??#### # ##"=% | | ??????????## ##?##"#### ""% | | ??????????# ##?##"""""# =% | | ??????????# ####""" *%& #### | | ??????????# ## ! ## ## * | | ??????????## ??## ## #""## "< | | ????????????? ??????## ######## " " | | ?????????????????????## ??????# " "" ### # | | ??????????????????????## ?????###########?###### | | ???????????????????????## "#?????????????????????? | | ?????????????????????????###?????????????????????? | +----------------------------------------------------+ Best States ------------- Heat Dissipation 39 Energy Generation 15 Energy Capacity 250 Matter Stores 300 Matter Capacity 300 Sight Range 16 Terrain Scan Density 10 Armor Coverage 150 Evasion (%) 55 Recoil Reduction 2 Item Schematics ----------------- None Robot Schematics ------------------ None Fabricated ------------ Nothing Alien Tech Used ----------------- None Achievements -------------- None Challenges ------------ None Game ------ Seed DimensionalPropulsionAutogun Manual? 0 Play Time 00:18:26 Cumulative 349.7 hours Start 2023.09.22 @ 17:50:34 End 2023.09.22 @ 18:05:13 Sessions 1 Manual Loads 0 Difficulty Rogue Special Mode None Game No. 371 Rogue 371 Adventurer 0 Explorer 0 Win Type - Total 29 Types 16/3/4/1/2/0/3/0/0 Lore% 86 Gallery% 86 Achievement% 82 Wizard Run 0 Options --------- ASCII 0 Keyboard 0 Movement Arrows Keybinds 0 Fullscreen 2 Font 24/Smallcaps Map View 76x50 Tactical HUD 1 Map Filters NONE Filters NONE Steam 1 RUN: e7f0185e-5f79-4b6a-8ea7-6c6102f85d25